fUSD/lending_fUSD_20250622
["ID","MTS","AMOUNT","RATE_DAILY","PERIOD"]
[367030951,1750623077584,-249.75835735,0.0003589,15]
[367030952,1750623077594,-545.7,0.0003589,15]
[367030953,1750623077604,-2128.15,0.0003589,15]
[367030954,1750623077613,-490.0,0.0003589,15]
[367030955,1750623077623,-1980.94,0.0003589,15]
[367030956,1750623077633,-1702.63,0.0003589,15]
[367030957,1750623077643,-490.0,0.0003589,15]
[367030958,1750623077653,-490.0,0.0003589,15]
[367030959,1750623077663,-1850.46,0.0003589,15]
[367030960,1750623077672,-490.0,0.0003589,15]
[367030961,1750623077682,-490.0,0.0003589,15]
[367030962,1750623077691,-490.0,0.0003589,15]
[367030963,1750623077701,-490.0,0.0003589,15]
[367030964,1750623077710,-505.92,0.0003589,15]
[367030965,1750623077720,-370.60001301,0.0003589,15]
[367030966,1750623077730,-2043.31,0.0003589,15]
[367030967,1750623077740,-490.0,0.0003589,15]
[367030968,1750623077751,-1514.53,0.0003589,15]
[367030969,1750623077760,-723.72,0.0003589,15]
[367030970,1750623077770,-1918.84,0.0003589,15]
[367030971,1750623077782,-490.0,0.0003589,15]
[367030972,1750623077792,-490.0,0.0003589,15]
[367030973,1750623077801,-490.0,0.0003589,15]
[367030974,1750623077811,-490.0,0.0003589,15]
[367030975,1750623077821,-2127.18,0.0003589,15]
[367030976,1750623077831,-891.88,0.0003589,15]
[367030977,1750623077843,-1950.75,0.0003589,15]
[367030978,1750623077853,-490.0,0.0003589,15]
[367030979,1750623077862,-1140.28,0.0003589,15]
[367030980,1750623077872,-490.0,0.0003589,15]
[367030981,1750623077883,-490.0,0.0003589,15]
[367030982,1750623077894,-494.16564808,0.0003589,15]
[367030983,1750623077904,-1385.37,0.0003589,15]
[367030984,1750623077913,-2895.53,0.0003589,15]
[367030985,1750623077923,-34959.79,0.0003589,15]
[367030986,1750623077933,-490.0,0.0003589,15]
[367030987,1750623077943,-844.43,0.0003589,15]
[367030988,1750623077953,-1042.11,0.0003589,15]
[367030989,1750623077963,-490.0,0.0003589,15]
[367030990,1750623077973,-490.0,0.0003589,15]
[367030991,1750623077983,-490.0,0.0003589,15]
[367030992,1750623077993,-2879.61,0.0003589,15]
[367030993,1750623078003,-746.23,0.0003589,15]
[367030994,1750623078012,-1207.21,0.0003589,15]
[367030995,1750623078022,-614.72,0.0003589,15]
[367030996,1750623078036,-490.0,0.0003589,15]
[367030997,1750623078046,-2944.64,0.0003589,15]
[367030998,1750623078056,-1879.92,0.0003589,15]
[367030999,1750623078066,-927.14,0.0003589,15]
[367031000,1750623078076,-1616.22,0.0003589,15]
[367031001,1750623078085,-2035.89,0.0003589,15]
[367031002,1750623078095,-490.0,0.0003589,15]
[367031003,1750623078104,-708.82,0.0003589,15]
[367031004,1750623078114,-169.21527905,0.0003589,15]
[367031005,1750623078123,-1444.46,0.0003589,15]
[367031006,1750623078133,-490.0,0.0003589,15]
[367031007,1750623078143,-2411.85,0.0003589,15]
[367031008,1750623078153,-2109.18,0.0003589,15]
[367031009,1750623078163,-1325.89,0.0003589,15]
[367031010,1750623078173,-520.44,0.0003589,15]
[367031011,1750623078183,-3679.5,0.0003589,15]
[367031012,1750623078193,-490.0,0.0003589,15]
[367031013,1750623078202,-490.0,0.0003589,15]
[367031014,1750623078212,-2340.44,0.0003589,15]
[367031015,1750623078221,-575.98,0.0003589,15]
[367031016,1750623078231,-2352.34,0.0003589,15]
[367031017,1750623078241,-1629.35,0.0003589,15]
[367031018,1750623078250,-3251.66,0.0003589,15]
[367031019,1750623078260,-1723.8,0.0003589,15]
[367031020,1750623078269,-340.680011,0.0003589,15]
[367031021,1750623078282,-2982.7,0.0003589,15]
[367031022,1750623078292,-1152.78,0.0003589,15]
[367031023,1750623078303,-1377.73,0.0003589,15]
[367031024,1750623078313,-490.0,0.0003589,15]
[367031025,1750623078324,-2848.97,0.0003589,15]
[367031026,1750623078336,-974.14,0.0003589,15]
[367031027,1750623078347,-3032.15,0.0003589,15]
[367031028,1750623078358,-185.49828058,0.0003589,15]
[367031029,1750623078368,-824.15,0.0003589,15]
[367031030,1750623078378,-490.0,0.0003589,15]
[367031031,1750623078389,-490.0,0.0003589,15]
[367031032,1750623078399,-1169.86,0.0003589,15]
[367031033,1750623078408,-490.0,0.0003589,15]
[367031034,1750623078418,-2206.35,0.0003589,15]
[367031035,1750623078427,-3479.23,0.0003589,15]
[367031036,1750623078438,-490.0,0.0003589,15]
[367031037,1750623078447,-2150.01,0.0003589,15]
[367031038,1750623078458,-490.0,0.0003589,15]
[367031039,1750623078468,-490.0,0.0003589,15]
[367031040,1750623078477,-1716.3,0.0003589,15]
[367031041,1750623078487,-490.0,0.0003589,15]
[367031042,1750623078496,-490.0,0.0003589,15]
[367031043,1750623078505,-887.79,0.0003589,15]
[367031044,1750623078514,-490.0,0.0003589,15]
[367031045,1750623078524,-490.0,0.0003589,15]
[367031046,1750623078536,-2804.95,0.0003589,15]
[367031047,1750623078546,-490.0,0.0003589,15]
[367031048,1750623078555,-674.66,0.0003589,15]
[367031049,1750623078564,-490.0,0.0003589,15]
[367031050,1750623078574,-5196.32,0.0003589,15]
[367031051,1750623078583,-490.0,0.0003589,15]
[367031052,1750623078592,-490.0,0.0003589,15]
[367031053,1750623078602,-742.66,0.0003589,15]
[367031054,1750623078611,-2228.36,0.0003589,15]
[367031055,1750623078621,-490.0,0.0003589,15]
[367031056,1750623078630,-490.0,0.0003589,15]
[367031057,1750623078639,-490.0,0.0003589,15]
[367031058,1750623078649,-1523.69,0.0003589,15]
[367031059,1750623078658,-2089.65,0.0003589,15]
[367031060,1750623078667,-768.33,0.0003589,15]
[367031061,1750623078677,-1599.57,0.0003589,15]
[367031062,1750623078686,-490.0,0.0003589,15]
[367031063,1750623078696,-490.0,0.0003589,15]
[367031064,1750623078705,-490.0,0.0003589,2]
[367031065,1750623078715,-528.3,0.0003589,15]
[367031066,1750623078724,-1079.64,0.0003589,15]
[367031067,1750623078734,-9839.32,0.0003589,15]
[367031068,1750623078743,-1851.35,0.0003589,15]
[367031069,1750623078753,-1708.01,0.0003589,15]
[367031070,1750623078762,-490.0,0.0003589,15]
[367031071,1750623078772,-1945.29,0.0003589,15]
[367031072,1750623078784,-490.0,0.0003589,15]
[367031073,1750623078794,-5292.05,0.0003589,15]
[367031074,1750623078804,-490.0,0.0003589,15]
[367031075,1750623078813,-490.0,0.0003589,15]
[367031076,1750623078822,-1705.17,0.0003589,15]
[367031077,1750623078832,-490.0,0.0003589,15]
[367031078,1750623078842,-3262.4,0.0003589,15]
[367031079,1750623078853,-3580.17,0.0003589,15]
[367031080,1750623078864,-490.0,0.0003589,15]
[367031081,1750623078874,-6847.26,0.0003589,15]
[367031082,1750623078884,-4138.33,0.0003589,15]
[367031083,1750623078894,-490.0,0.0003589,15]
[367031084,1750623078903,-482.19583604,0.0003589,15]
[367031085,1750623078913,-490.0,0.0003589,15]
[367031086,1750623078922,-490.0,0.0003589,15]
[367031087,1750623078933,-490.0,0.0003589,15]
[367031088,1750623078943,-1264.04,0.0003589,15]
[367031089,1750623078953,-610.32,0.0003589,15]
[367031090,1750623078962,-682.99,0.0003589,15]
[367031091,1750623078971,-2792.48,0.0003589,15]
[367031092,1750623078981,-1082.76,0.0003589,15]
[367031093,1750623078990,-490.0,0.0003589,15]
[367031094,1750623078999,-2134.73,0.0003589,15]
[367031095,1750623079009,-9385.51,0.0003589,15]
[367031096,1750623079020,-8229.28,0.0003589,15]
[367031097,1750623079033,-878.92,0.0003589,15]
[367031098,1750623079042,-1159.54,0.0003589,15]
[367031099,1750623079051,-616.29,0.0003589,15]
[367031100,1750623079061,-490.0,0.0003589,15]
[367031101,1750623079070,-490.0,0.0003589,15]
[367031102,1750623079079,-490.0,0.0003589,15]
[367031103,1750623079088,-490.0,0.0003589,15]
[367031104,1750623079191,-3778.91,0.0003589,15]
[367031105,1750623079202,-2189.67,0.0003589,15]
[367031106,1750623079211,-490.0,0.0003589,15]
[367031107,1750623079221,-1189.75,0.0003589,15]
[367031108,1750623079230,-7511.75,0.0003589,15]
[367031109,1750623079240,-1540.78,0.0003589,15]
[367031110,1750623079249,-1941.35,0.0003589,15]
[367031111,1750623079258,-490.0,0.0003589,15]
[367031112,1750623079267,-1940.54,0.0003589,15]
[367031113,1750623079279,-490.0,0.0003589,15]
[367031114,1750623079289,-2101.01,0.0003589,15]
[367031115,1750623079298,-490.0,0.0003589,15]
[367031116,1750623079308,-490.0,0.0003589,15]
[367031117,1750623079317,-2026.38,0.0003589,15]
[367031118,1750623079327,-1926.15,0.0003589,15]
[367031119,1750623079337,-1056.77,0.0003589,15]
[367031120,1750623079346,-490.0,0.0003589,15]
[367031121,1750623079356,-490.0,0.0003589,15]
[367031122,1750623079365,-490.0,0.0003589,15]
[367031123,1750623079374,-895.27,0.0003589,15]
[367031124,1750623079384,-507.80937634,0.0003589,15]
[367031125,1750623079393,-490.0,0.0003589,15]
[367031126,1750623079402,-2121.94,0.0003589,15]
[367031127,1750623079412,-490.0,0.0003589,15]
[367031128,1750623079421,-1550.89,0.0003589,15]
[367031129,1750623079431,-1520.57,0.0003589,15]
[367031130,1750623079440,-632.2,0.0003589,15]
[367031131,1750623079450,-2309.22,0.0003589,15]
[367031132,1750623079459,-490.0,0.0003589,15]
[367031133,1750623079468,-490.0,0.0003589,15]
[367031134,1750623079478,-490.0,0.0003589,15]
[367031135,1750623079487,-1012.9,0.0003589,15]
[367031136,1750623079497,-533.31277888,0.0003589,15]
[367031137,1750623079507,-490.0,0.0003589,15]
[367031138,1750623079516,-1180.53,0.0003589,15]
[367031139,1750623079525,-10998.82,0.0003589,15]
[367031140,1750623079536,-1997.35,0.0003589,15]
[367031141,1750623079546,-1887.27,0.0003589,15]
[367031142,1750623079555,-1278.08,0.0003589,15]
[367031143,1750623079565,-490.0,0.0003589,15]
[367031144,1750623079574,-1251.26,0.0003589,15]
[367031145,1750623079583,-493.31,0.0003589,15]
[367031146,1750623079592,-2923.59,0.0003589,15]
[367031147,1750623079601,-1595.65,0.0003589,15]
[367031148,1750623079610,-2026.15,0.0003589,15]
[367031149,1750623079619,-490.0,0.0003589,15]
[367031150,1750623079628,-2332.89,0.0003589,15]
[367031151,1750623079637,-635.72,0.0003589,15]
[367031152,1750623079646,-5136.6,0.0003589,15]
[367031153,1750623079655,-1829.33,0.0003589,15]
[367031154,1750623079664,-884.45,0.0003589,15]
[367031155,1750623079673,-3600.48,0.0003589,15]
[367031156,1750623079682,-490.0,0.0003589,15]
[367031157,1750623079691,-490.0,0.0003589,15]
[367031158,1750623079700,-990.0,0.0003589,15]
[367031159,1750623079709,-911.53,0.0003589,15]
[367031160,1750623079718,-644.75,0.0003589,15]
[367031161,1750623079728,-490.0,0.0003589,15]
[367031162,1750623079737,-706.45,0.0003589,15]
[367031163,1750623079746,-986.8,0.0003589,15]
[367031164,1750623079755,-490.0,0.0003589,15]
[367031165,1750623079764,-490.0,0.0003589,15]
[367031166,1750623079773,-1756.48,0.0003589,15]
[367031167,1750623079785,-567.11,0.0003589,15]
[367031168,1750623079794,-490.0,0.0003589,15]
[367031169,1750623079803,-2185.15,0.0003589,15]
[367031170,1750623079812,-490.0,0.0003589,15]
[367031171,1750623079822,-490.0,0.0003589,15]
[367031172,1750623079831,-974.21,0.0003589,15]
[367031173,1750623079843,-490.0,0.0003589,15]
[367031174,1750623079853,-490.0,0.0003589,15]
[367031175,1750623079863,-2237.94,0.0003589,15]
[367031176,1750623079872,-975.97,0.0003589,15]
[367031177,1750623079883,-1878.84,0.0003589,15]
[367031178,1750623079892,-490.0,0.0003589,15]
[367031179,1750623079902,-812.18,0.0003589,15]
[367031180,1750623079911,-490.0,0.0003589,15]
[367031181,1750623079923,-490.0,0.0003589,15]
[367031182,1750623079932,-1154.07,0.0003589,15]
[367031183,1750623079942,-4854.73,0.0003589,15]
[367031184,1750623079951,-490.0,0.0003589,15]
[367031185,1750623079960,-2078.66,0.0003589,15]
[367031186,1750623079969,-868.07,0.0003589,15]
[367031187,1750623079978,-490.0,0.0003589,15]
[367031188,1750623079987,-490.0,0.0003589,15]
[367031189,1750623079996,-913.26,0.0003589,15]
[367031190,1750623080005,-490.0,0.0003589,15]
[367031191,1750623080014,-1754.63,0.0003589,15]
[367031192,1750623080024,-490.0,0.0003589,15]
[367031193,1750623080036,-951.93,0.0003589,15]
[367031194,1750623080045,-490.0,0.0003589,15]
[367031195,1750623080055,-1370.08,0.0003589,15]
[367031196,1750623080064,-490.0,0.0003589,15]
[367031197,1750623080073,-490.0,0.0003589,15]
[367031198,1750623080082,-490.0,0.0003589,15]
[367031199,1750623080091,-4936.67,0.0003589,15]
[367031200,1750623080100,-12778.24,0.0003589,15]
[367031201,1750623080109,-1089.22,0.0003589,15]
[367031202,1750623080118,-2018.48,0.0003589,15]
[367031203,1750623080128,-2095.4,0.0003589,15]
[367031204,1750623080137,-2062.56,0.0003589,15]
[367031205,1750623080146,-490.0,0.0003589,15]
[367031206,1750623080155,-490.0,0.0003589,15]
[367031207,1750623080164,-630.0,0.0003589,15]
[367031208,1750623080174,-2118.26,0.0003589,15]
[367031209,1750623080183,-490.0,0.0003589,15]
[367031210,1750623080192,-626.26,0.0003589,15]
[367031211,1750623080201,-490.0,0.0003589,15]
[367031212,1750623080209,-490.0,0.0003589,15]
[367031213,1750623080219,-216.46358122,0.0003589,15]
[367031214,1750623080228,-2221.1,0.0003589,15]
[367031215,1750623080237,-490.0,0.0003589,15]
[367031216,1750623080245,-2028.3,0.0003589,15]
[367031217,1750623080255,-490.0,0.0003589,15]
[367031218,1750623080264,-829.85,0.0003589,15]
[367031219,1750623080274,-1669.85,0.0003589,15]
[367031220,1750623080287,-2052.94,0.0003589,15]
[367031221,1750623080296,-2404.26,0.0003589,15]
[367031222,1750623080305,-490.0,0.0003589,15]
[367031223,1750623080314,-1255.58,0.0003589,15]
[367031224,1750623080324,-490.0,0.0003589,15]
[367031225,1750623080333,-4044.2,0.0003589,15]
[367031226,1750623080342,-632.61,0.0003589,15]
[367031227,1750623080351,-6369.33,0.0003589,15]
[367031228,1750623080360,-2126.41,0.0003589,15]
[367031229,1750623080369,-490.0,0.0003589,15]
[367031230,1750623080378,-839.91,0.0003589,15]
[367031231,1750623080387,-490.0,0.0003589,15]
[367031232,1750623080396,-490.0,0.0003589,15]
[367031233,1750623080405,-490.0,0.0003589,15]
[367031234,1750623080414,-490.0,0.0003589,15]
[367031235,1750623080423,-1966.79,0.0003589,15]
[367031236,1750623080432,-490.0,0.0003589,15]
[367031237,1750623080441,-14191.19,0.0003589,15]
[367031238,1750623080450,-490.0,0.0003589,15]
[367031239,1750623080460,-1973.36,0.0003589,15]
[367031240,1750623080469,-490.0,0.0003589,15]
[367031241,1750623080478,-985.11,0.0003589,15]
[367031242,1750623080487,-1462.28,0.0003589,15]
[367031243,1750623080496,-1462.23,0.0003589,15]
[367031244,1750623080505,-490.0,0.0003589,15]
[367031245,1750623080514,-5738.6,0.0003589,15]
[367031246,1750623080523,-822.31,0.0003589,15]
[367031247,1750623080538,-490.0,0.0003589,15]
[367031248,1750623080548,-1217.6,0.0003589,15]
[367031249,1750623080557,-1414.06,0.0003589,15]
[367031250,1750623080566,-490.0,0.0003589,15]
[367031251,1750623080575,-490.0,0.0003589,15]
[367031252,1750623080584,-2674.9,0.0003589,15]
[367031253,1750623080593,-490.0,0.0003589,15]
[367031254,1750623080603,-2221.83,0.0003589,15]
[367031255,1750623080612,-510.97983468,0.0003589,15]
[367031256,1750623080621,-762.93,0.0003589,15]
[367031257,1750623080631,-490.0,0.0003589,15]
[367031258,1750623080640,-610.42,0.0003589,15]
[367031259,1750623080649,-882.46,0.0003589,15]
[367031260,1750623080660,-490.0,0.0003589,15]
[367031261,1750623080669,-490.0,0.0003589,15]
[367031262,1750623080678,-2512.43,0.0003589,15]
[367031263,1750623080687,-490.0,0.0003589,15]
[367031264,1750623080696,-2129.87,0.0003589,15]
[367031265,1750623080705,-2210.98,0.0003589,15]
[367031266,1750623080714,-490.0,0.0003589,15]
[367031267,1750623080724,-1687.99,0.0003589,15]
[367031268,1750623080734,-8031.99,0.0003589,15]
[367031269,1750623080745,-490.0,0.0003589,15]
[367031270,1750623080755,-10888.29,0.0003589,14]
[367031271,1750623080766,-3617.39,0.0003589,15]
[367031272,1750623080775,-537.79,0.0003589,15]
[367031273,1750623080788,-490.0,0.0003589,15]
[367031274,1750623080797,-376.12586427,0.0003589,15]
[367031275,1750623080807,-18523.03,0.0003589,15]
[367031276,1750623080816,-490.0,0.0003589,15]
[367031277,1750623080825,-5662.0,0.0003589,15]
[367031278,1750623080835,-490.0,0.0003589,15]
[367031279,1750623080846,-656.12,0.0003589,15]
[367031280,1750623080857,-1128.28,0.0003589,15]
[367031281,1750623080867,-2310.53,0.0003589,15]
[367031282,1750623080876,-490.0,0.0003589,15]
[367031283,1750623080885,-2012.19,0.0003589,15]
[367031284,1750623080897,-490.0,0.0003589,15]
[367031285,1750623080907,-3220.65,0.0003589,15]
[367031286,1750623080918,-490.0,0.0003589,15]
[367031287,1750623080928,-490.0,0.0003589,15]
[367031288,1750623080940,-490.0,0.0003589,15]
[367031289,1750623080950,-870.38,0.0003589,15]
[367031290,1750623080960,-1129.87,0.0003589,15]
[367031291,1750623080971,-490.0,0.0003589,15]
[367031292,1750623080980,-490.0,0.0003589,15]
[367031293,1750623080990,-490.0,0.0003589,15]
[367031294,1750623080999,-2080.35,0.0003589,15]
[367031295,1750623081009,-4076.07,0.0003589,15]
[367031296,1750623081018,-490.0,0.0003589,15]
[367031297,1750623081030,-7092.7,0.0003589,15]
[367031298,1750623081040,-3487.85,0.0003589,15]
[367031299,1750623081050,-490.0,0.0003589,15]
[367031300,1750623081059,-490.0,0.0003589,15]
[367031301,1750623081068,-490.0,0.0003589,15]
[367031302,1750623081078,-591.94,0.0003589,15]
[367031303,1750623081087,-959.79,0.0003589,15]
[367031304,1750623081097,-490.0,0.0003589,15]
[367031305,1750623081106,-1866.0,0.0003589,15]
[367031306,1750623081115,-490.0,0.0003589,15]
[367031307,1750623081124,-618.7194013,0.0003589,2]
[367031308,1750623081134,-490.0,0.0003589,15]
[367031309,1750623081143,-490.0,0.0003589,15]
[367031310,1750623081153,-490.0,0.0003589,15]
[367031311,1750623081163,-2481.99,0.0003589,15]
[367031312,1750623081173,-689.02,0.0003589,15]
[367031313,1750623081183,-490.0,0.0003589,15]
[367031314,1750623081193,-1584.02,0.0003589,15]
[367031315,1750623081202,-490.0,0.0003589,15]
[367031316,1750623081211,-2122.82,0.0003589,15]
[367031317,1750623081220,-490.0,0.0003589,15]
[367031318,1750623081230,-490.0,0.0003589,15]
[367031319,1750623081239,-490.0,0.0003589,15]
[367031320,1750623081248,-962.19,0.0003589,15]
[367031321,1750623081258,-490.0,0.0003589,15]
[367031322,1750623081267,-1762.49,0.0003589,15]
[367031323,1750623081281,-490.0,0.0003589,15]
[367031324,1750623081291,-1267.3,0.0003589,15]
[367031325,1750623081300,-1341.51,0.0003589,15]
[367031326,1750623081310,-2295.87,0.0003589,15]
[367031327,1750623081320,-490.0,0.0003589,15]
[367031328,1750623081329,-490.0,0.0003589,15]
[367031329,1750623081339,-1943.1,0.0003589,15]
[367031330,1750623081349,-490.0,0.0003589,15]
[367031331,1750623081358,-575.98,0.0003589,15]
[367031332,1750623081368,-490.0,0.0003589,15]
[367031333,1750623081378,-735.31,0.0003589,15]
[367031334,1750623081387,-1903.3,0.0003589,15]
[367031335,1750623081397,-1774.41,0.0003589,15]
[367031336,1750623081406,-490.0,0.0003589,15]
[367031337,1750623081416,-490.0,0.0003589,15]
[367031338,1750623081426,-490.0,0.0003589,15]
[367031339,1750623081436,-2365.24,0.0003589,15]
[367031340,1750623081446,-1249.34,0.0003589,2]
[367031341,1750623081456,-490.0,0.0003589,15]
[367031342,1750623081466,-1712.7,0.0003589,15]
[367031343,1750623081475,-1957.08,0.0003589,15]
[367031344,1750623081485,-2092.55,0.0003589,15]
[367031345,1750623081495,-2330.89,0.0003589,15]
[367031346,1750623081505,-517.24,0.0003589,15]
[367031347,1750623081514,-2340.05,0.0003589,15]
[367031348,1750623081523,-490.0,0.0003589,15]
[367031349,1750623081536,-1029.88,0.0003589,15]
[367031350,1750623081546,-805.81,0.0003589,15]
[367031351,1750623081557,-502.32075781,0.0003589,15]
[367031352,1750623081567,-490.0,0.0003589,15]
[367031353,1750623081576,-849.45,0.0003589,15]
[367031354,1750623081586,-1622.88,0.0003589,15]
[367031355,1750623081596,-490.0,0.0003589,15]
[367031356,1750623081606,-500.0,0.00035895,2]
[367031357,1750623081616,-400.0,0.000359,13]
[367031358,1750623081626,-2162.695661,0.000359,24]
[367031359,1750623081635,-885.0,0.00035905,2]
[367031360,1750623081646,-13390.7180114,0.00035973,2]
[367031361,1750623081656,-151.0,0.00035986,2]
[367031362,1750623081666,-152.0,0.00036,30]
[367031363,1750623081676,-283.86025695,0.00036027,15]
[367031364,1750623081686,-259.58600763,0.00036038,34]
[367031365,1750623081696,-1068.50722,0.00036088,30]
[367031366,1750623081706,-224.19528033,0.00036119,2]
[367031367,1750623081716,-350.0,0.00036119,2]
[367031368,1750623081726,-13390.7180114,0.00036125,2]
[367031369,1750623081736,-150.0,0.00036132,2]
[367031370,1750623081746,-150.0,0.00036132,2]
[367031371,1750623081756,-150.0,0.00036132,2]
[367031372,1750623081766,-549.29957859,0.00036163,30]
[367031373,1750623081776,-10896.52921568,0.00036164,2]
[367031374,1750623081792,-151.0,0.00036164,7]
[367031375,1750623081802,-7224.170436,0.00036164,15]
[367031376,1750623081812,-311.91205,0.00036164,15]
[367031377,1750623081822,-490.0,0.00036164,15]
[367031378,1750623081833,-503.54666755,0.00036164,15]
[367031379,1750623081844,-490.0,0.00036164,15]
[367031380,1750623081856,-490.0,0.00036164,15]
[367031381,1750623081865,-490.0,0.00036164,15]
[367031382,1750623081875,-490.0,0.00036164,15]
[367031383,1750623081887,-500.0,0.00036164,15]
[367031384,1750623081897,-490.0,0.00036164,15]
[367031385,1750623081907,-490.0,0.00036164,15]
[367031386,1750623081917,-759.01,0.00036164,15]
[367031387,1750623081927,-490.0,0.00036164,15]
[367031388,1750623081937,-490.0,0.00036164,15]
[367031389,1750623081948,-490.0,0.00036164,15]
[367031390,1750623081958,-490.0,0.00036164,15]
[367031391,1750623081968,-490.0,0.00036164,15]
[367031392,1750623081978,-490.0,0.00036164,15]
[367031393,1750623081988,-490.0,0.00036164,15]
[367031394,1750623081998,-490.0,0.00036164,15]
[367031395,1750623082007,-490.0,0.00036164,15]
[367031396,1750623082017,-490.0,0.00036164,15]
[367031397,1750623082032,-236.51485456,0.00036164,15]
[367031398,1750623082041,-490.0,0.00036164,15]
[367031399,1750623082051,-490.0,0.00036164,15]
[367031400,1750623082060,-562.75,0.00036164,15]
[367031401,1750623082071,-155.29554318,0.00036164,15]
[367031402,1750623082081,-490.0,0.00036164,15]
[367031403,1750623082091,-490.0,0.00036164,15]
[367031404,1750623082101,-656.11,0.00036164,15]
[367031405,1750623082111,-353.7208241,0.00036164,15]
[367031406,1750623082121,-490.0,0.00036164,15]
[367031407,1750623082131,-490.0,0.00036164,15]
[367031408,1750623082140,-490.0,0.00036164,15]
[367031409,1750623082150,-490.0,0.00036164,15]
[367031410,1750623082160,-1255.71,0.00036164,15]
[367031411,1750623082170,-151.0,0.00036164,7]
[367031412,1750623082180,-490.0,0.00036164,15]
[367031413,1750623082190,-670.26,0.00036164,15]
[367031414,1750623082200,-490.0,0.00036164,15]
[367031415,1750623082210,-151.0,0.00036164,7]
[367031416,1750623082220,-151.0,0.00036164,7]
[367031417,1750623082230,-490.0,0.00036164,15]
[367031418,1750623082240,-490.0,0.00036164,15]
[367031419,1750623082249,-587.2,0.00036164,15]
[367031420,1750623082259,-229.7621378,0.00036164,15]
[367031421,1750623082269,-490.0,0.00036164,2]
[367031422,1750623082283,-490.0,0.00036164,15]
[367031423,1750623082292,-490.0,0.00036164,15]
[367031424,1750623082302,-424.63344486,0.00036164,15]
[367031425,1750623082312,-506.22967389,0.00036164,15]
[367031426,1750623082322,-490.0,0.00036164,15]
[367031427,1750623082331,-290.0,0.00036164,15]
[367031428,1750623082342,-151.0,0.00036164,7]
[367031429,1750623082353,-320.0,0.00036164,15]
[367031430,1750623082363,-302.06956163,0.00036164,15]
[367031431,1750623082373,-490.0,0.00036164,15]
[367031432,1750623082383,-490.0,0.00036164,15]
[367031433,1750623082393,-490.0,0.00036164,15]
[367031434,1750623082404,-151.0,0.00036164,7]
[367031435,1750623082413,-490.0,0.00036164,15]
[367031436,1750623082423,-490.0,0.00036164,15]
[367031437,1750623082433,-490.0,0.00036164,15]
[367031438,1750623082442,-490.0,0.00036164,15]
[367031439,1750623082452,-490.0,0.00036164,15]
[367031440,1750623082462,-490.0,0.00036164,15]
[367031441,1750623082472,-490.0,0.00036164,15]
[367031442,1750623082483,-309.56557472,0.00036164,15]
[367031443,1750623082492,-699.53,0.00036164,15]
[367031444,1750623082502,-151.0,0.00036164,7]
[367031445,1750623082511,-490.0,0.00036164,15]
[367031446,1750623082521,-490.0,0.00036164,15]
[367031447,1750623082537,-490.0,0.00036164,15]
[367031448,1750623082547,-940.62,0.00036164,15]
[367031449,1750623082560,-490.0,0.00036164,15]
[367031450,1750623082570,-151.0,0.00036164,7]